bitfinex/quotes_ETHUSD_20241003
["timestamp","ask_amount","ask_price","bid_price","bid_amount"]
[1727987410431,4.25467,2350.4,2350.1,0.55]
[1727987413799,8.5094,2350.4,2350.1,0.55]
[1727987414004,4.25513,2350.1,2350.0,1.377]
[1727987414214,4.25568,2349.8,2349.7,0.7624]
[1727987414414,4.25597,2349.7,2349.5,0.7624]
[1727987415434,4.25611,2349.6,2349.2,0.7624]
[1727987415600,4.25611,2349.6,2349.2,5.01914]
[1727987415784,4.25611,2349.6,2349.2,0.7624]
[1727987415998,4.25588,2349.7,2349.2,0.7624]
[1727987416344,4.25588,2349.7,2349.3,4.25658]
[1727987416637,4.25588,2349.7,2349.3,0.55]
[1727987417297,8.51187,2349.7,2349.3,0.55]
[1727987417610,4.25588,2349.7,2349.3,0.55]
[1727987417802,4.2561,2349.6,2349.3,0.55]
[1727987418426,4.25588,2349.7,2349.3,0.55]
[1727987418678,8.51183,2349.7,2349.3,0.55]
[1727987418852,4.25615,2349.6,2349.3,0.55]
[1727987420143,4.25588,2349.7,2349.3,4.80649]
[1727987421842,4.2561,2349.6,2349.3,0.55]
[1727987423454,4.25586,2349.7,2349.3,4.80657]
[1727987423654,4.25586,2349.7,2349.3,0.55]
[1727987423849,4.25605,2349.6,2349.3,0.55]
[1727987428613,4.25583,2349.8,2349.3,0.55]
[1727987428769,4.25587,2349.7,2349.3,4.80651]
[1727987429504,0.7651,2349.9,2349.4,4.25629]
[1727987429708,0.7651,2349.9,2349.6,0.7557]
[1727987429709,3.0,2349.9,2349.6,0.7557]
[1727987431193,7.25556,2349.9,2349.6,0.7557]
[1727987434599,4.25568,2349.8,2349.6,0.7557]
[1727987437974,4.25568,2349.8,2349.6,1.3057]
[1727987437975,4.25586,2349.7,2349.6,1.3057]
[1727987438771,4.25572,2349.8,2349.6,1.3057]
[1727987439808,4.25586,2349.7,2349.6,1.3057]
[1727987440606,4.25586,2349.7,2349.6,0.7557]
[1727987440806,4.25633,2349.5,2349.2,0.7642]
[1727987442527,4.25633,2349.5,2349.3,0.55]
[1727987443362,4.25618,2349.6,2349.3,0.55]
[1727987444635,4.25625,2349.5,2349.3,0.55]
[1727987448544,4.25611,2349.6,2349.3,0.55]
[1727987449036,8.51228,2349.6,2349.3,0.55]
[1727987450079,4.25623,2349.5,2349.3,0.55]
[1727987450653,4.2564,2349.4,2349.3,0.55]
[1727987450976,4.25625,2349.5,2349.3,0.55]
[1727987451738,4.2564,2349.4,2349.3,0.55]
[1727987452851,4.25623,2349.5,2349.3,0.55]
[1727987453690,5.07188,2349.6,2349.3,0.55]
[1727987454184,4.2563,2349.5,2349.3,0.55]
[1727987454357,5.07188,2349.6,2349.3,0.55]
[1727987454557,9.32803,2349.6,2349.3,0.55]
[1727987455283,4.25632,2349.5,2349.3,0.55]
[1727987456686,5.07187,2349.6,2349.3,0.55]
[1727987456895,4.25628,2349.5,2349.3,0.55]
[1727987460389,8.51259,2349.5,2349.3,0.55]
[1727987460697,5.07188,2349.6,2349.3,0.55]
[1727987462022,4.25622,2349.5,2349.3,0.55]
[1727987468751,5.07184,2349.6,2349.3,0.55]
[1727987469051,4.25636,2349.5,2349.3,0.55]
[1727987470734,4.25694,2349.1,2348.9,1.34123361]
[1727987471062,4.25731,2348.9,2348.7,2.15943361]
[1727987471217,4.25731,2348.9,2348.7,0.8182]
[1727987471413,4.25731,2348.9,2348.5,6.41745361]
[1727987472309,4.25782,2348.7,2348.5,0.8182]
[1727987472750,4.25776,2348.7,2348.3,2.15943361]
[1727987472912,4.25763,2348.8,2348.3,2.15943361]
[1727987473110,4.25774,2348.7,2348.4,0.06976246]
[1727987473343,1.668244,2348.9,2348.4,0.06976246]
[1727987473543,4.25803,2348.5,2348.4,0.06976246]
[1727987474568,4.25786,2348.6,2348.4,0.06976246]
[1727987475513,4.25803,2348.5,2348.4,0.06976246]
[1727987476125,5.01983,2348.5,2348.4,0.06976246]
[1727987476321,4.25867,2348.2,2347.9,0.7754]
[1727987476543,4.25867,2348.2,2348.0,0.0719805]
[1727987477451,4.25824,2348.4,2348.1,0.55]
[1727987477452,4.25842,2348.3,2348.1,0.55]
[1727987477818,4.25842,2348.3,2348.2,0.06393875]
[1727987479063,9.009366,2348.3,2348.2,0.06393875]
[1727987479350,4.25945,2347.8,2347.5,0.7742]
[1727987480214,4.25945,2347.8,2347.3,5.03451292]
[1727987480463,4.25945,2347.8,2347.3,9.29457292]
[1727987480820,4.25945,2347.8,2347.3,5.03451292]
[1727987481034,4.25945,2347.8,2347.3,9.29458292]
[1727987481214,5.08225,2347.9,2347.4,4.25993]
[1727987481454,4.2594,2347.8,2347.4,4.25993]
[1727987481666,5.193565,2347.8,2347.3,0.77446292]
[1727987481876,5.193565,2347.8,2347.3,0.00026292]
[1727987481877,5.08258,2347.7,2347.3,0.00026292]
[1727987482168,8.08258,2347.7,2347.3,0.00026292]
[1727987485721,8.08258,2347.7,2347.6,0.17842035]
[1727987486057,8.08258,2347.7,2347.6,0.1164276]
[1727987486464,17.95019,2347.7,2347.6,0.1164276]
[1727987486809,20.171149,2347.7,2347.6,0.1164276]
[1727987490095,10.303539,2347.7,2347.6,0.1164276]
[1727987490303,35.434053,2347.7,2347.6,0.1164276]
[1727987490484,15.698739,2347.7,2347.6,0.1164276]
[1727987491602,14.733829,2347.7,2347.6,0.1164276]
[1727987494942,7.303539,2347.7,2347.6,0.1164276]
[1727987495099,5.08258,2347.7,2347.6,0.1164276]
[1727987495945,5.15672287,2347.7,2347.6,0.1164276]
[1727987496551,8.15672287,2347.7,2347.6,0.1164276]
[1727987497337,13.81386187,2347.7,2347.6,0.1164276]
[1727987499235,12.24602287,2347.7,2347.6,0.1164276]
[1727987499409,13.95300425,2347.7,2347.6,0.1164276]
[1727987504732,14.51739513,2347.7,2347.6,0.1164276]
[1727987504905,14.44325226,2347.7,2347.6,0.1164276]
[1727987505941,52.17509026,2347.7,2347.6,0.1164276]
[1727987506108,48.55100126,2347.7,2347.6,0.1164276]
[1727987508233,49.10100126,2347.7,2347.6,0.1164276]
[1727987509105,52.83829329,2347.7,2347.6,0.1164276]
[1727987509720,10.62653,2347.4,2347.3,0.00026292]
[1727987509948,63.28082906,2347.4,2347.3,0.00026292]
[1727987510256,65.0180303,2347.4,2347.3,0.00026292]
[1727987510453,63.0180303,2347.4,2347.3,0.00026292]
[1727987510752,39.45997796,2347.4,2347.3,0.00026292]
[1727987510920,34.73284606,2347.4,2347.3,0.00026292]
[1727987512721,5.84993818,2347.4,2347.3,0.00026292]
[1727987512921,4.26003,2347.4,2347.3,0.00026292]
[1727987513123,4.26003,2347.4,2347.3,0.82307079]
[1727987513443,4.26003,2347.4,2347.3,0.76506292]
[1727987513754,4.26003,2347.4,2347.3,0.00026292]
[1727987514254,7.26003,2347.4,2347.3,0.00026292]
[1727987514551,8.412022,2347.4,2347.3,0.00026292]
[1727987514721,8.412022,2347.4,2347.3,0.00826292]
[1727987520165,14.114759,2347.4,2347.3,0.00826292]
[1727987520656,8.412022,2347.4,2347.3,0.00826292]
[1727987520858,7.26003,2347.4,2347.3,0.00826292]
[1727987521371,13.920522,2347.4,2347.3,0.00826292]
[1727987524441,44.19759,2347.4,2347.3,0.00826292]
[1727987525226,44.76198088,2347.4,2347.3,0.00826292]
[1727987525429,44.83603583,2347.4,2347.3,0.00826292]
[1727987525665,49.13674115,2347.4,2347.3,0.00826292]
[1727987525872,49.13674115,2347.4,2347.3,0.00026292]
[1727987525873,52.97649796,2347.4,2347.3,0.00026292]
[1727987526242,50.42649796,2347.4,2347.3,0.00026292]
[1727987527133,51.38689998,2347.4,2347.3,0.00026292]
[1727987527944,15.22263998,2347.4,2347.3,0.00026292]
[1727987528142,59.17177583,2347.4,2347.3,0.00026292]
[1727987528381,61.42193466,2347.4,2347.3,0.00026292]
[1727987528745,61.86734607,2347.4,2347.3,0.00026292]
[1727987529150,60.59586207,2347.4,2347.3,0.00026292]
[1727987530063,63.14586207,2347.4,2347.3,0.00026292]
[1727987530262,67.44656739,2347.4,2347.3,0.00026292]
[1727987530667,0.3205,2346.8,2345.6,0.8219]
[1727987530882,2.0,2346.9,2345.6,0.8219]
[1727987530883,7.26311,2345.7,2345.6,0.8219]
[1727987531585,7.26311,2345.7,2345.6,0.88509055]
[1727987531947,7.26311,2345.7,2345.6,0.83509055]
[1727987532480,4.26311,2345.7,2345.6,0.83509055]
[1727987533586,8.52603,2345.8,2345.6,0.83509055]
[1727987533787,8.52603,2345.8,2345.6,0.84336529]
[1727987534095,11.52603,2345.8,2345.7,0.00827474]
[1727987534599,11.52603,2345.8,2345.7,0.07134947]
[1727987535089,4.26297,2345.8,2345.7,0.89324947]
[1727987535311,7.26277,2345.9,2345.8,0.8219]
[1727987535496,7.26277,2345.9,2345.8,0.83017474]
[1727987535703,7.26277,2345.9,2345.8,0.89313365]
[1727987537913,4.26277,2345.9,2345.8,0.89313365]
[1727987539119,4.26257,2346.0,2345.9,1.3824]
[1727987539617,4.26257,2346.0,2345.9,1.44524311]
[1727987541273,4.26248,2346.1,2346.0,0.8324]
[1727987541476,4.26248,2346.1,2346.0,0.84067474]
[1727987541680,4.26248,2346.1,2346.0,0.90340206]
[1727987547912,5.11495,2346.1,2346.0,0.07100206]
[1727987548108,8.11495,2346.1,2346.0,0.07100206]
[1727987548336,8.94725,2346.1,2346.0,0.00827474]
[1727987553524,8.11495,2346.1,2346.0,0.00827474]
[1727987553726,7.26248,2346.1,2346.0,0.80527474]
[1727987554141,7.26248,2346.1,2346.0,0.86836328]
[1727987555324,4.26248,2346.1,2346.0,0.86836328]
[1727987556813,7.26248,2346.1,2346.0,0.86836328]
[1727987557222,4.26125,2346.8,2346.0,1.41836328]
[1727987557223,4.26166,2346.6,2346.0,1.41836328]
[1727987557424,4.26157,2346.6,2346.5,0.00827474]
[1727987557623,4.26157,2346.6,2346.5,0.80527474]
[1727987557856,4.26157,2346.6,2346.5,0.86759762]
[1727987558444,4.26157,2346.6,2346.5,0.80527474]
[1727987558963,5.946159,2346.6,2346.5,0.00827474]
[1727987559153,8.946159,2346.6,2346.5,0.00827474]
[1727987562450,8.113859,2346.6,2346.5,0.00827474]
[1727987576806,4.26157,2346.6,2346.5,0.78767474]
[1727987577209,4.26157,2346.6,2346.5,0.84971116]
[1727987577985,7.26157,2346.6,2346.5,1.39971116]
[1727987578610,7.26157,2346.6,2346.5,1.33767474]
[1727987579169,4.26132,2346.7,2346.5,1.33767474]
[1727987579370,4.26132,2346.7,2346.6,0.7794]
[1727987581676,4.26113,2346.8,2346.6,0.7794]
[1727987581984,4.26113,2346.8,2346.7,0.00827474]
[1727987582520,7.26113,2346.8,2346.7,0.00827474]
[1727987583026,8.413337,2346.8,2346.7,0.00827474]
[1727987584520,7.26113,2346.8,2346.7,0.00827474]
[1727987591600,8.08593,2346.8,2346.7,0.00827474]
[1727987602749,8.16014451,2346.8,2346.7,0.00827474]
[1727987603127,8.08593,2346.8,2346.7,0.00827474]
[1727987604941,7.26113,2346.8,2346.7,0.00827474]
[1727987607119,8.493247,2346.8,2346.7,0.00827474]
[1727987607548,8.493247,2346.8,2346.7,0.00715903]
[1727987607926,9.284947,2346.8,2346.7,0.00715903]
[1727987608115,9.84933788,2346.8,2346.7,0.00715903]
[1727987608316,9.284947,2346.8,2346.7,0.00715903]
[1727987609225,7.26113,2346.8,2346.7,0.00715903]
[1727987619791,7.26113,2346.8,2346.7,0.78725903]
[1727987652004,7.26113,2346.8,2346.7,0.00715903]
[1727987652502,8.08903,2346.8,2346.7,0.00715903]
[1727987653018,8.16325144,2346.8,2346.7,0.00715903]
[1727987653335,21.18247302,2346.8,2346.7,0.00715903]
[1727987653628,22.15500591,2346.8,2346.7,0.00715903]
[1727987653808,23.4448751,2346.8,2346.7,0.00715903]
[1727987654583,22.33048422,2346.8,2346.7,0.00715903]
[1727987654788,9.33144914,2346.8,2346.7,0.00715903]
[1727987654988,5.08903,2346.8,2346.7,0.00715903]
[1727987655238,4.26113,2346.8,2346.7,0.00715903]
[1727987656089,4.26113,2346.8,2346.7,0.76155903]
[1727987656737,7.26113,2346.8,2346.7,0.76155903]
[1727987658305,7.26113,2346.8,2346.7,0.00715903]
[1727987658510,9.241337,2346.8,2346.7,0.00715903]
[1727987658735,9.23002825,2346.8,2346.7,0.00715903]
[1727987661147,8.07782125,2346.8,2346.7,0.00715903]
[1727987661343,7.24982125,2346.8,2346.7,0.00715903]
[1727987664818,7.69521375,2346.8,2346.7,0.00715903]
[1727987670557,8.47041375,2346.8,2346.7,0.00715903]
[1727987679675,20.56615375,2346.8,2346.7,0.00715903]
[1727987679990,23.61325401,2346.8,2346.7,0.00715903]
[1727987680287,25.44973203,2346.8,2346.7,0.00715903]
[1727987680579,25.88721931,2346.8,2346.7,0.00715903]
[1727987680782,29.5576352,2346.8,2346.7,0.00715903]
[1727987681142,26.84591572,2346.8,2346.7,0.00715903]
[1727987683550,25.88721931,2346.8,2346.7,0.00715903]
[1727987683758,26.84404703,2346.8,2346.7,0.00715903]
[1727987684356,25.88721931,2346.8,2346.7,0.00715903]
[1727987684967,26.84369935,2346.8,2346.7,0.00715903]
[1727987685290,25.88721931,2346.8,2346.7,0.00715903]
[1727987685549,3.0,2346.7,2345.2,0.1164276]
[1727987685689,7.26384,2345.3,2345.2,0.1164276]
[1727987686431,7.70911372,2345.3,2345.2,0.1164276]
[1727987687541,8.46291372,2345.3,2345.2,0.1164276]
[1727987687689,11.5773046,2345.3,2345.2,0.1164276]
[1727987688035,13.59889234,2345.3,2345.2,0.1164276]
[1727987689365,4.26693,2343.6,2343.5,0.8085]
[1727987689679,7.26693,2343.6,2343.5,0.8085]
[1727987691142,7.26693,2343.6,2343.5,0.81677474]
[1727987693833,4.26693,2343.6,2343.5,1.36677474]
[1727987694140,4.26693,2343.6,2343.5,1.41096174]
[1727987694733,8.53363,2343.7,2343.5,1.41096174]
[1727987694974,4.26693,2343.6,2343.5,1.41096174]
[1727987695674,0.7645,2344.6,2343.6,0.7859]
[1727987695849,8.53235,2344.1,2344.0,0.7792]
[1727987696046,11.57485,2344.8,2344.1,0.55]
[1727987696247,4.26443,2345.0,2344.1,1.3292]
[1727987696248,4.26584,2344.2,2344.1,1.3292]
[1727987696896,4.26584,2344.2,2344.1,0.7792]
[1727987697600,12.79463,2344.8,2344.1,0.7792]
[1727987697807,4.26574,2344.3,2344.1,0.7792]
[1727987697966,4.26584,2344.2,2344.1,0.7792]
[1727987698660,4.2654,2344.5,2344.1,0.7792]
[1727987698864,4.26568,2344.3,2344.1,0.7792]
[1727987699902,3.0,2344.4,2344.1,0.7792]
[1727987700100,7.26549,2344.4,2344.1,0.7792]
[1727987700405,3.0,2344.4,2344.1,0.7792]
[1727987701124,3.0,2344.4,2344.2,0.504537]
[1727987701314,7.26556,2344.4,2344.3,0.00827474]
[1727987701517,3.0,2344.4,2344.3,0.00827474]
[1727987702682,7.26548,2344.4,2344.3,0.00827474]
[1727987703308,7.26548,2344.4,2344.3,0.05841918]
[1727987703491,7.26548,2344.4,2344.3,0.00827474]
[1727987703675,7.26548,2344.4,2344.3,0.05836306]
[1727987703879,7.26548,2344.4,2344.3,0.00827474]
[1727987704075,7.26548,2344.4,2344.3,0.05836306]
[1727987704338,7.26548,2344.4,2344.3,0.00827474]
[1727987704518,7.26548,2344.4,2344.3,0.05836306]
[1727987704714,7.26548,2344.4,2344.3,0.00827474]
[1727987705211,7.26548,2344.4,2344.3,0.05836306]
[1727987705412,7.26548,2344.4,2344.3,0.00827474]
[1727987706057,3.0,2344.4,2344.3,0.05834903]
[1727987706260,4.26522,2344.6,2344.4,0.7555]
[1727987706552,7.26522,2344.6,2344.5,0.00827474]
[1727987706852,7.26522,2344.6,2344.5,0.06271152]
[1727987707023,7.26511,2344.6,2344.5,0.06271152]
[1727987710066,7.26511,2344.6,2344.5,0.00827474]
[1727987710571,7.26511,2344.6,2344.5,0.0626095]
[1727987710761,7.26511,2344.6,2344.5,0.00827474]
[1727987711068,3.0,2344.6,2344.5,0.79307474]
[1727987711259,4.26494,2344.7,2344.5,0.79307474]
[1727987711260,4.26456,2345.0,2344.5,5.61405245]
[1727987711461,5.01421,2345.5,2345.0,0.8098]
[1727987711647,4.26421,2345.1,2345.0,0.8098]
[1727987712203,4.2641,2345.2,2345.0,0.86910274]
[1727987712348,4.26379,2345.4,2345.1,0.00827474]
[1727987712547,4.26351,2345.5,2345.2,0.8098]
[1727987712852,4.26351,2345.5,2345.2,0.86861928]
[1727987713245,4.26369,2345.4,2345.2,0.86861928]
[1727987713446,4.26384,2345.3,2345.2,0.05881928]
[1727987713751,4.26421,2345.1,2345.0,0.8098]
[1727987713945,4.26382,2345.4,2345.2,0.00827474]
[1727987714191,4.26351,2345.5,2345.3,0.81807474]
[1727987714352,3.0,2345.4,2345.3,0.81807474]
[1727987714554,4.26351,2345.5,2345.3,0.81807474]
[1727987714806,4.26366,2345.4,2345.3,0.81807474]
[1727987715793,4.26334,2345.6,2345.3,0.81807474]
[1727987716003,3.0,2345.5,2345.3,0.81807474]
[1727987716366,4.26366,2345.4,2345.3,0.81807474]
[1727987717758,4.26359,2345.5,2345.3,0.81807474]
[1727987718197,3.0,2345.5,2345.3,0.81807474]
[1727987718356,7.26323,2345.7,2345.4,0.05784232]
[1727987718560,7.26323,2345.7,2345.6,0.00827474]
[1727987719001,7.26323,2345.7,2345.6,0.06590855]
[1727987720018,7.26323,2345.7,2345.6,0.00827474]
[1727987722331,7.26323,2345.7,2345.6,0.06590855]
[1727987722533,8.4659838,2345.7,2345.6,0.00827474]
[1727987723291,8.4659838,2345.7,2345.6,0.06590855]
[1727987723292,7.26323,2345.7,2345.6,0.06590855]
[1727987723521,8.52536,2346.0,2345.7,0.8121]
[1727987723687,4.26276,2345.9,2345.7,0.8121]
[1727987724017,0.8006,2346.2,2345.3,1.3621]
[1727987724018,4.26326,2345.7,2345.3,1.3621]
[1727987724326,4.26326,2345.7,2345.6,0.00827474]
[1727987724726,7.26326,2345.7,2345.6,0.00827474]
[1727987726406,9.231879,2345.7,2345.6,0.00827474]
[1727987728125,8.415879,2345.7,2345.6,0.00827474]
[1727987728328,7.26326,2345.7,2345.6,0.00827474]
[1727987733318,7.26326,2345.7,2345.6,0.07225003]
[1727987733544,7.26326,2345.7,2345.6,0.00827474]
[1727987733748,7.26326,2345.7,2345.6,0.07225003]
[1727987733916,7.26326,2345.7,2345.6,0.00827474]
[1727987734117,7.26326,2345.7,2345.6,0.0720756]
[1727987734356,8.415879,2345.7,2345.6,0.00827474]
[1727987734568,8.415879,2345.7,2345.6,0.0720756]
[1727987734726,8.415879,2345.7,2345.6,0.00827474]
[1727987735228,8.415879,2345.7,2345.6,0.0720756]
[1727987737639,9.194079,2345.7,2345.6,0.0720756]
[1727987737839,9.194079,2345.7,2345.6,0.00827474]
[1727987741727,9.194079,2345.7,2345.6,0.07221888]
[1727987741956,17.88068988,2345.7,2345.6,0.00827474]
[1727987742371,4.26493,2344.7,2344.6,0.7611]
[1727987742660,4.26493,2344.7,2343.9,11.7263]
[1727987742661,4.26547,2344.5,2344.0,0.807]
[1727987742860,4.26547,2344.5,2344.1,0.06216729]
[1727987743062,4.26486,2344.8,2344.2,0.807]
[1727987743419,4.26486,2344.8,2344.3,0.86762131]
[1727987744659,4.26503,2344.7,2344.3,0.86762131]
[1727987744865,4.26503,2344.7,2344.5,0.8159]
[1727987745071,4.26503,2344.7,2344.5,0.87798268]
[1727987746094,4.26511,2344.6,2344.5,0.87798268]
[1727987746282,4.26511,2344.6,2344.5,0.88625742]
[1727987746486,8.5301,2344.7,2344.5,0.88625742]
[1727987746797,8.53009,2344.7,2344.5,0.88625742]
[1727987747000,4.26503,2344.7,2344.5,0.88625742]
[1727987747232,4.26503,2344.7,2344.5,1.40144716]
[1727987747709,4.26503,2344.7,2344.5,0.88625742]
[1727987748497,8.53012,2344.7,2344.5,0.88625742]
[1727987748692,4.26511,2344.6,2344.5,0.88625742]
[1727987751123,4.26503,2344.7,2344.5,0.88625742]
[1727987751628,4.26511,2344.6,2344.5,0.88625742]
[1727987754521,4.26488,2344.8,2344.6,0.55]
[1727987754719,7.26488,2344.8,2344.7,0.00827474]
[1727987754942,7.26488,2344.8,2344.7,0.07049236]
[1727987755698,7.26488,2344.8,2344.7,0.86029236]
[1727987758408,4.26422,2345.1,2344.7,0.86029236]
[1727987758603,4.26435,2345.1,2345.0,0.00827474]
[1727987763250,4.26407,2345.2,2345.0,0.00827474]
[1727987763547,4.26407,2345.2,2345.1,0.785]
[1727987764034,4.26402,2345.2,2345.1,0.785]
[1727987764348,4.26388,2345.3,2345.1,0.785]
[1727987764649,4.26388,2345.3,2345.1,1.34578247]
[1727987764849,4.26388,2345.3,2345.2,0.00827474]
[1727987772451,0.44524691,2346.0,2345.4,0.7961]
[1727987772650,4.70797691,2346.0,2345.9,0.00827474]
[1727987773041,4.26242,2346.1,2345.9,0.80437474]
[1727987773674,4.26257,2346.0,2345.9,0.80437474]
[1727987774044,7.26257,2346.0,2345.9,0.80437474]
[1727987775103,3.0,2346.0,2345.9,0.80437474]
[1727987775246,7.26257,2346.0,2345.9,0.80437474]
[1727987778152,4.26257,2346.0,2345.9,0.80437474]
[1727987781988,4.26257,2346.0,2345.9,0.00827474]
[1727987782214,5.895066,2346.0,2345.9,0.00827474]
[1727987782820,5.115066,2346.0,2345.9,0.00827474]
[1727987783116,4.26257,2346.0,2345.9,0.00827474]
[1727987795248,7.26257,2346.0,2345.9,0.00827474]
[1727987795552,8.01917,2346.0,2345.9,0.00827474]
[1727987796898,7.26257,2346.0,2345.9,0.00827474]
[1727987809252,8.02487,2346.0,2345.9,0.00827474]
[1727987809479,9.253596,2346.0,2345.9,0.00827474]
[1727987813288,8.02487,2346.0,2345.9,0.00827474]
[1727987813453,7.26257,2346.0,2345.9,0.00827474]
[1727987818679,4.26257,2346.0,2345.9,0.00827474]
[1727987820673,4.26242,2346.1,2345.9,0.00827474]
[1727987821080,4.26202,2346.4,2346.0,0.7766]
[1727987821260,4.26202,2346.4,2346.3,0.00827474]
[1727987822901,7.26202,2346.4,2346.3,0.00827474]
[1727987825295,3.0,2346.4,2346.3,0.00827474]
[1727987830084,4.26143,2346.7,2346.3,4.27027474]
[1727987830285,7.2613,2346.7,2346.6,0.00827474]
[1727987830812,4.26097,2346.9,2346.6,0.00827474]
[1727987831016,0.7772,2347.1,2346.7,0.8226]
[1727987831017,4.26059,2347.1,2346.7,0.8226]
[1727987831171,4.26075,2347.0,2346.7,0.8226]
[1727987831511,4.26095,2346.9,2346.7,0.8226]
[1727987832083,4.26072,2347.1,2346.7,3.4088108]
[1727987832280,4.26072,2347.1,2346.7,7.6700708]
[1727987832667,4.26072,2347.1,2346.7,3.4088108]
[1727987832871,4.26032,2347.3,2347.0,0.7967]
[1727987833112,4.26032,2347.3,2347.2,0.00827474]
[1727987834780,7.26032,2347.3,2347.2,0.00827474]
[1727987835783,9.240655,2347.3,2347.2,0.00827474]
[1727987848058,9.68601064,2347.3,2347.2,0.00827474]
[1727987852876,9.240655,2347.3,2347.2,0.00827474]
[1727987853033,7.26032,2347.3,2347.2,0.00827474]
[1727987869797,8.01412,2347.3,2347.2,0.00827474]
[1727987871281,7.26032,2347.3,2347.2,0.00827474]
[1727987873017,8.03862,2347.3,2347.2,0.00827474]
[1727987874709,7.26032,2347.3,2347.2,0.00827474]
[1727987877246,8.53471181,2347.3,2347.2,0.00827474]
[1727987881928,9.33141181,2347.3,2347.2,0.00827474]
[1727987882248,8.53471181,2347.3,2347.2,0.00827474]
[1727987882457,7.26032,2347.3,2347.2,0.00827474]
[1727987884161,8.07482,2347.3,2347.2,0.00827474]
[1727987885160,27.395764,2347.3,2347.2,0.00827474]
[1727987885537,22.306783,2347.3,2347.2,0.00827474]
[1727987891627,28.286386,2347.3,2347.2,0.00827474]
[1727987892657,28.55755441,2347.3,2347.2,0.00827474]
[1727987892977,11.37398841,2347.3,2347.2,0.00827474]
[1727987893270,8.07482,2347.3,2347.2,0.00827474]
[1727987893429,19.134051,2347.3,2347.2,0.00827474]
[1727987893626,16.79312,2347.3,2347.2,0.00827474]
[1727987893825,12.44512,2347.3,2347.2,0.00827474]
[1727987894048,8.07482,2347.3,2347.2,0.00827474]
[1727987895265,9.48165166,2347.3,2347.2,0.00827474]
[1727987900187,9.55584909,2347.3,2347.2,0.00827474]
[1727987900584,9.48165166,2347.3,2347.2,0.00827474]
[1727987903854,8.66715166,2347.3,2347.2,0.00827474]
[1727987910168,20.17197466,2347.3,2347.2,0.00827474]
[1727987910370,13.98307466,2347.3,2347.2,0.00827474]
[1727987911627,8.66715166,2347.3,2347.2,0.00827474]
[1727987911931,7.26032,2347.3,2347.2,0.00827474]
[1727987912136,7.26032,2347.3,2347.2,0.80307474]
[1727987922127,4.26032,2347.3,2347.2,0.80307474]
[1727987923340,7.26032,2347.3,2347.2,0.80307474]
[1727987932358,7.26032,2347.3,2347.2,0.00827474]
[1727987932568,8.412355,2347.3,2347.2,0.00827474]
[1727987936872,8.48659213,2347.3,2347.2,0.00827474]
[1727987937236,8.412355,2347.3,2347.2,0.00827474]
[1727987954379,7.26032,2347.3,2347.2,0.00827474]
[1727987964602,8.01272,2347.3,2347.2,0.00827474]
[1727987966640,7.26032,2347.3,2347.2,0.00827474]
[1727987966937,7.26032,2347.3,2347.2,0.76047474]
[1727987967947,7.26032,2347.3,2347.2,0.00827474]
[1727987984640,7.26032,2347.3,2347.2,0.79117474]
[1727987987508,7.26032,2347.3,2347.2,0.00827474]
[1727987987704,8.45688759,2347.3,2347.2,0.00827474]
[1727987990725,8.45688759,2347.3,2347.2,0.76877474]
[1727987990726,7.26032,2347.3,2347.2,0.76877474]
[1727987993252,0.44532587,2347.5,2347.2,0.76877474]
[1727987993253,4.70528587,2347.5,2347.2,0.76877474]
[1727987993463,4.25995,2347.5,2347.2,0.76877474]
[1727987993788,4.25995,2347.5,2347.4,0.7697]
[1727987994084,4.25995,2347.5,2347.4,0.77797474]
[1727988008933,7.25995,2347.5,2347.4,0.00827474]
[1727988009118,8.897814,2347.5,2347.4,0.00827474]
[1727988012755,9.41801215,2347.5,2347.4,0.00827474]
[1727988014454,9.34377815,2347.5,2347.4,0.00827474]
[1727988019728,21.74335215,2347.5,2347.4,0.00827474]
[1727988019928,22.28461591,2347.5,2347.4,0.00827474]
[1727988020199,21.83865176,2347.5,2347.4,0.00827474]
[1727988020323,22.2846136,2347.5,2347.4,0.00827474]
[1727988027156,21.74334984,2347.5,2347.4,0.00827474]
[1727988030394,9.34377584,2347.5,2347.4,0.00827474]
[1727988030699,60.9350396,2347.5,2347.4,0.00827474]
[1727988030998,66.03236064,2347.5,2347.4,0.00827474]
[1727988031298,8.58581,2347.3,2347.2,0.00827474]
[1727988031467,8.04345,2347.0,2346.9,0.00827474]
[1727988031657,58.54345,2347.0,2346.9,0.00827474]
[1727988033198,26.909616,2347.0,2346.9,0.00827474]
[1727988033359,26.28657604,2347.0,2346.9,0.00827474]
[1727988034099,21.66364204,2347.0,2346.9,0.00827474]
[1727988034856,20.61321004,2347.0,2346.9,0.00827474]
[1727988035074,18.46964204,2347.0,2346.9,0.00827474]
[1727988035758,18.91564316,2347.0,2346.9,0.00827474]
[1727988036992,19.45690692,2347.0,2346.9,0.00827474]
[1727988037660,20.73860537,2347.0,2346.9,0.00827474]
[1727988037861,20.81287609,2347.0,2346.9,0.00827474]
[1727988038102,23.90539066,2347.0,2346.9,0.00827474]
[1727988038398,20.81287609,2347.0,2346.9,0.00827474]
[1727988040275,23.36287609,2347.0,2346.9,0.00827474]
[1727988040487,5.0683,2346.7,2346.6,0.00827474]
[1727988040704,59.970264,2346.7,2346.6,0.00827474]
[1727988043686,59.420264,2346.7,2346.6,0.00827474]
[1727988043982,37.89177,2346.7,2346.6,0.00827474]
[1727988046301,35.22009,2346.7,2346.6,0.00827474]
[1727988046537,31.368126,2346.7,2346.6,0.76937474]
[1727988047017,4.2613,2346.7,2346.6,0.76937474]
[1727988047791,7.2613,2346.7,2346.6,0.76937474]
[1727988063352,8.413547,2346.7,2346.6,0.76937474]
[1727988063518,7.2613,2346.7,2346.6,0.76937474]
[1727988063859,7.2613,2346.7,2346.6,0.00827474]
[1727988067735,7.33556015,2346.7,2346.6,0.00827474]
[1727988068562,7.2613,2346.7,2346.6,0.00827474]
[1727988089101,7.33555528,2346.7,2346.6,0.00827474]
[1727988091294,7.2613,2346.7,2346.6,0.00827474]
[1727988096315,8.76860078,2346.7,2346.6,0.00827474]
[1727988109213,7.2613,2346.7,2346.6,0.00827474]
[1727988110849,36.593945,2346.7,2346.6,0.00827474]
[1727988111032,7.26275,2345.9,2345.8,0.7701]